bitfinex-derivatives/quotes_ETHF0:USTF0_20250212
["timestamp","ask_amount","ask_price","bid_price","bid_amount"]
[1739344426013,3.5721,2606.8,2606.7,3.2078]
[1739344426610,6.72986362,2606.8,2606.7,3.2078]
[1739344429513,3.5721,2606.8,2606.7,3.2078]
[1739344432225,6.72986362,2606.8,2606.7,3.2078]
[1739344432515,6.79333321,2606.8,2606.7,3.2078]
[1739344433022,6.72986362,2606.8,2606.7,3.2078]
[1739344433421,6.79332807,2606.8,2606.4,0.00574977]
[1739344433630,0.5982,2606.7,2606.4,0.00574977]
[1739344433817,0.5943,2606.6,2606.4,0.00574977]
[1739344434519,6.72986362,2606.8,2606.4,0.00574977]
[1739344435024,3.5721,2606.8,2606.4,0.00574977]
[1739344438022,6.72986362,2606.8,2606.4,0.00574977]
[1739344438223,3.2078,2606.6,2606.4,0.00574977]
[1739344438524,0.5723,2606.5,2606.4,0.00574977]
[1739344438821,1.21496353,2606.5,2606.4,0.00574977]
[1739344439016,4.37272715,2606.5,2606.4,0.00574977]
[1739344439917,4.37272364,2606.5,2606.4,0.00574977]
[1739344441126,4.30926362,2606.5,2606.4,0.00574977]
[1739344441324,4.37271413,2606.5,2606.4,0.00574977]
[1739344442826,1.21495051,2606.5,2606.4,0.00574977]
[1739344444523,1.21494807,2606.5,2606.4,0.00574977]
[1739344445027,1.1515,2606.5,2606.4,0.00574977]
[1739344445227,1.21494808,2606.5,2606.4,0.00574977]
[1739344446115,0.06344863,2606.5,2606.4,0.00574977]
[1739344446323,1.679,2606.8,2606.4,0.00574977]
[1739344446522,0.00574977,2606.9,2606.4,1.18714977]
[1739344447125,0.60844977,2606.9,2606.4,1.18714977]
[1739344451423,0.00574977,2606.9,2606.4,1.18714977]
[1739344453739,0.00574977,2606.9,2606.4,4.39494977]
[1739344460838,3.2078,2606.8,2606.4,4.39494977]
[1739344461632,0.59294977,2606.9,2606.4,4.39494977]
[1739344466836,3.57194977,2606.9,2606.4,4.39494977]
[1739344469144,2.98474977,2606.9,2606.4,4.39494977]
[1739344476146,2.98474977,2606.9,2606.7,3.2078]
[1739344476450,2.98474977,2606.9,2606.8,1.1572]
[1739344477350,2.2589,2607.5,2606.8,1.1572]
[1739344477549,0.5909,2607.5,2607.1,3.2078]
[1739344477750,0.5909,2607.5,2607.2,0.5552]
[1739344478851,0.5909,2607.5,2607.3,40.8]
[1739344479747,0.5909,2607.5,2606.9,1.109]
[1739344480348,0.5909,2607.5,2607.0,40.8]
[1739344481854,0.5909,2607.5,2607.1,0.19380261]
[1739344483054,6.36556362,2607.4,2607.0,40.8]
[1739344483254,0.5881,2607.3,2606.9,1.109]
[1739344483653,0.5881,2607.3,2606.9,41.909]
[1739344485162,3.2078,2607.8,2607.1,3.2078]
[1739344485367,3.2078,2607.8,2607.2,0.5981]
[1739344485368,0.06346535,2607.7,2607.2,0.5981]
[1739344485762,4.8758,2607.8,2607.3,0.5531]
[1739344485968,3.2078,2607.8,2607.4,0.5902]
[1739344487168,1.1872,2607.9,2607.4,3.798]
[1739344490266,0.5642,2607.8,2607.4,3.798]
[1739344491373,0.5642,2607.8,2607.4,3.2078]
[1739344501181,1.668,2608.1,2607.4,3.2078]
[1739344501378,2.2656,2608.1,2607.7,3.2078]
[1739344501575,2.2656,2608.1,2607.8,1.1822]
[1739344502172,2.2656,2608.1,2607.8,0.5784]
[1739344502570,3.15776362,2608.0,2607.7,3.2078]
[1739344504075,0.06347059,2607.9,2607.7,3.2078]
[1739344504480,3.27127059,2607.9,2607.4,3.2078]
[1739344504782,3.15776362,2607.7,2607.4,3.2078]
[1739344504979,1.1977,2607.6,2607.4,3.2078]
[1739344505279,1.7633,2607.6,2607.4,3.2078]
[1739344506181,0.5656,2607.6,2607.4,3.2078]
[1739344506380,4.32666362,2608.0,2607.5,1.1584]
[1739344506583,0.62907189,2607.9,2607.5,1.1584]
[1739344506783,0.5656,2607.9,2607.5,1.1584]
[1739344507380,0.06346898,2607.8,2607.4,3.2078]
[1739344508676,3.2078,2607.6,2607.2,1.1584]
[1739344508878,1.7224,2607.5,2607.2,0.5568]
[1739344509577,3.3904,2607.5,2607.2,0.5568]
[1739344512675,0.1,3780.0,2607.2,0.5568]
[1739344512676,3.2078,2607.9,2607.2,0.5568]
[1739344512881,0.06347025,2607.8,2607.3,6.95666362]
[1739344513079,1.1264,2608.0,2607.3,7.53186362]
[1739344513780,0.06347027,2607.9,2607.3,7.53186362]
[1739344513975,1.1264,2608.0,2607.3,7.53186362]
[1739344514377,0.5915,2607.9,2607.3,7.53186362]
[1739344514573,3.2078,2608.3,2607.6,6.55313151]
[1739344514776,3.2078,2608.3,2607.9,3.15776362]
[1739344514983,0.5915,2608.5,2608.0,0.5969]
[1739344515379,0.5915,2608.5,2608.1,0.5605]
[1739344515578,1.668,2609.0,2608.2,3.15776362]
[1739344515779,0.06345226,2608.9,2608.3,3.2078]
[1739344515979,0.06345226,2608.9,2608.4,40.8]
[1739344517477,0.06345226,2608.9,2608.5,0.5786]
[1739344517787,2.2595,2609.0,2608.5,0.5786]
[1739344517989,0.06344815,2608.9,2608.5,0.5786]
[1739344519384,3.22121177,2608.9,2608.5,0.5786]
[1739344519578,3.15776362,2608.9,2608.3,3.2078]
[1739344519782,3.27125132,2608.8,2608.1,0.5786]
[1739344519982,0.06345132,2608.7,2608.1,0.5786]
[1739344520279,0.06345132,2608.7,2608.1,3.7864]
[1739344520484,3.2078,2608.8,2608.1,3.7864]
[1739344520680,6.13676362,2608.9,2608.1,3.7864]
[1739344520887,0.06345247,2608.8,2608.1,3.7864]
[1739344521085,6.13676362,2608.9,2608.1,3.7864]
[1739344521389,2.979,2608.9,2608.4,3.2078]
[1739344521686,2.979,2608.9,2608.5,0.5992]
[1739344521883,2.979,2608.9,2608.6,0.5727]
[1739344522086,0.5915,2609.0,2608.6,0.5727]
[1739344522284,0.06344793,2608.9,2608.6,0.5727]
[1739344523087,0.5915,2609.0,2608.6,0.5727]
[1739344523391,0.06344742,2608.9,2608.6,0.5727]
[1739344523793,0.5913,2609.2,2608.6,0.5727]
[1739344524091,0.5913,2609.2,2608.7,3.2078]
[1739344524290,0.5913,2609.2,2608.7,6.36556362]
[1739344525589,0.5913,2609.2,2608.8,40.8]
[1739344526086,0.5913,2609.2,2608.9,0.5596]
[1739344526286,3.8043,2609.4,2608.9,0.5596]
[1739344526787,0.0634382,2609.3,2608.9,0.5596]
[1739344527388,3.15776362,2609.2,2608.7,3.2078]
[1739344527585,0.606,2609.1,2608.7,3.2078]
[1739344527792,0.6005,2609.0,2608.7,3.2078]
[1739344527986,0.606,2609.1,2608.7,3.2078]
[1739344528287,1.2055,2609.1,2608.7,3.2078]
[1739344528683,4.4133,2609.1,2608.6,0.5727]
[1739344528985,7.3923,2609.1,2608.6,0.5727]
[1739344531892,0.00286575,2608.9,2608.6,0.5727]
[1739344532686,0.00286575,2608.9,2608.5,0.579]
[1739344532886,0.00286575,2608.9,2608.4,44.0078]
[1739344532887,3.16062937,2608.9,2608.4,44.0078]
[1739344533092,0.6012,2608.8,2608.4,44.0078]
[1739344533594,0.5656,2608.7,2608.4,44.0078]
[1739344533987,7.01681933,2608.6,2608.0,3.2078]
[1739344534184,0.06345571,2608.5,2607.9,0.609]
[1739344534390,0.06345571,2608.5,2607.9,41.409]
[1739344536991,6.7746,2608.6,2607.9,41.409]
[1739344537188,0.06345941,2608.5,2608.0,0.6003]
[1739344537489,5.2378,2608.6,2608.1,3.2078]
[1739344537692,4.65,2608.6,2608.1,3.2078]
[1739344537892,1.671,2608.6,2608.2,0.5875]
[1739344538196,0.6012,2608.8,2608.2,0.5875]
[1739344538588,0.6012,2608.8,2608.4,3.2078]
[1739344538784,0.6012,2608.8,2608.5,0.612]
[1739344539196,1.12086575,2608.9,2608.6,0.583]
[1739344539988,1.12086575,2608.9,2608.7,40.8]
[1739344540494,0.89086575,2608.9,2608.7,40.8]
[1739344540690,0.89086575,2608.9,2608.4,3.2078]
[1739344540890,3.15776362,2608.7,2608.1,3.2078]
[1739344541285,3.15776362,2608.7,2608.1,40.8]
[1739344541493,0.06345534,2608.6,2608.1,40.8]
[1739344542189,4.8808,2608.5,2607.8,3.21354977]
[1739344542389,3.77642789,2608.4,2607.8,3.21354977]
[1739344542693,0.588,2608.3,2607.9,40.8]
[1739344543688,0.5927,2608.2,2607.9,40.8]
[1739344544800,0.588,2608.3,2608.0,0.6047]
[1739344545795,0.588,2608.3,2607.9,40.8]
[1739344551299,0.588,2608.3,2607.8,3.21354977]
[1739344551793,0.588,2608.3,2607.9,40.8]
[1739344551991,0.588,2608.3,2607.9,41.3852]
[1739344554901,0.588,2608.3,2608.0,0.5844]
[1739344556603,3.15776362,2608.1,2607.8,3.21354977]
[1739344556802,1.1566,2608.0,2607.8,0.00574977]
[1739344557606,0.06347545,2607.9,2607.8,0.00574977]
[1739344559308,3.27127545,2607.9,2607.8,0.00574977]
[1739344559605,4.94127545,2607.9,2607.2,3.2078]
[1739344559798,3.15776362,2607.5,2607.3,40.8]
[1739344560005,0.5991,2607.4,2607.3,40.8]
[1739344560193,1.1665,2607.4,2607.2,3.2078]
[1739344561201,1.1665,2607.4,2607.0,1.12494977]
[1739344561202,4.8798,2607.3,2607.0,0.00574977]
[1739344561502,3.82755924,2607.2,2607.0,0.00574977]
[1739344561805,3.76406362,2607.2,2607.0,0.00574977]
[1739344562205,0.06349619,2607.1,2607.0,0.00574977]
[1739344563699,0.0634978,2607.1,2607.0,0.00574977]
[1739344564499,3.76406362,2607.2,2607.0,0.00574977]
[1739344565298,2.979,2607.3,2607.0,0.00574977]
[1739344565807,2.979,2607.3,2607.0,0.56944977]
[1739344566601,3.21354977,2607.6,2607.0,0.56944977]
[1739344566602,0.00574977,2607.6,2607.2,3.2078]
[1739344566906,0.00574977,2607.6,2607.3,1.1889]
[1739344567210,0.00574977,2607.6,2607.4,40.8]
[1739344567805,3.15776362,2607.5,2607.0,0.00574977]
[1739344568311,3.21354977,2607.6,2607.1,40.8]
[1739344568511,0.06348493,2607.5,2607.1,40.8]
[1739344568711,3.21354977,2607.6,2607.1,40.8]
[1739344568904,0.06348502,2607.5,2607.1,40.8]
[1739344569105,3.21354977,2607.6,2607.1,40.8]
[1739344569310,0.06348513,2607.5,2607.1,40.8]
[1739344569811,0.06348513,2607.5,2607.2,0.6113]
[1739344570713,3.21354977,2607.6,2607.2,0.6113]
[1739344571013,0.06348632,2607.5,2607.2,0.6113]
[1739344572413,0.06348632,2607.5,2607.3,0.5941]
[1739344572713,3.21354977,2607.6,2607.3,0.5941]
[1739344572914,0.06348523,2607.5,2607.3,0.5941]
[1739344574213,0.06348523,2607.5,2607.2,0.6113]
[1739344574407,3.2078,2607.3,2607.0,0.00574977]
[1739344574715,3.15776362,2607.1,2607.0,0.00574977]
[1739344581207,3.22125987,2607.1,2607.0,0.00574977]
[1739344587120,3.22126391,2607.1,2607.0,0.00574977]
[1739344588822,3.22126403,2607.1,2607.0,0.00574977]
[1739344590618,3.15776362,2607.1,2607.0,0.00574977]
[1739344590818,3.22126249,2607.1,2607.0,0.00574977]
[1739344591425,6.20026249,2607.1,2607.0,0.00574977]
[1739344593919,3.04249887,2607.1,2607.0,0.00574977]
[1739344594124,4.647,2607.1,2607.0,0.00574977]
[1739344594523,2.979,2607.1,2607.0,0.00574977]
[1739344595321,0.00574977,2607.6,2607.0,0.00574977]
[1739344595529,0.00574977,2607.6,2607.2,3.2078]
[1739344596221,0.00574977,2607.6,2607.2,6.36556362]
[1739344596422,0.00574977,2607.6,2607.5,3.2078]
[1739344596625,0.00574977,2607.6,2607.5,9.2078]
[1739344596928,7.29286362,2608.4,2607.5,53.16556362]
[1739344597127,3.74876362,2608.4,2607.8,3.2078]
[1739344597331,3.74876362,2608.4,2607.9,0.575]
[1739344598430,0.06346343,2608.3,2607.9,0.575]
[1739344599328,3.74876362,2608.4,2607.9,0.575]
[1739344599832,3.15776362,2608.4,2607.9,0.575]
[1739344600037,3.15776362,2608.4,2608.0,0.5556]
[1739344603229,0.06346469,2608.3,2608.0,0.5556]
[1739344604033,7.8568,2608.5,2608.0,0.5556]
[1739344604234,0.0634627,2608.4,2608.0,0.5556]
[1739344604733,6.1868,2608.5,2608.0,0.5556]
[1739344605238,3.2078,2608.5,2608.0,0.5556]
[1739344608235,4.29776362,2608.7,2608.0,0.5556]
[1739344608535,3.2078,2608.9,2608.3,3.2078]
[1739344608744,3.2078,2608.9,2608.4,0.5803]
[1739344609041,3.2078,2608.9,2608.5,0.5772]
[1739344609436,3.773,2608.9,2608.5,0.5772]
[1739344610138,4.3663,2608.9,2608.5,0.5772]
[1739344611338,4.3663,2608.9,2608.6,40.8]
[1739344612042,4.3663,2608.9,2608.4,0.5803]
[1739344612443,4.3663,2608.9,2608.5,40.8]
[1739344612947,4.3663,2608.9,2608.4,0.5803]
[1739344613333,4.3663,2608.9,2608.3,3.21354977]
[1739344613537,3.15776362,2608.7,2608.3,0.00574977]
[1739344613734,0.5764,2608.6,2608.3,0.00574977]
[1739344614237,4.3663,2608.9,2608.3,0.00574977]
[1739344614441,0.06345271,2608.8,2608.3,0.00574977]
[1739344614639,0.06345271,2608.8,2608.3,3.21354977]
[1739344614939,0.06345271,2608.8,2608.4,0.6045]
[1739344615142,4.9427,2608.9,2608.4,0.6045]
[1739344615439,4.9427,2608.9,2608.5,0.6122]
[1739344616047,1.1585,2608.9,2608.5,0.6122]
[1739344616541,1.1585,2608.9,2608.6,3.2078]
[1739344618339,4.3663,2608.9,2608.3,0.00574977]
[1739344618543,0.06345184,2608.8,2608.3,0.00574977]
[1739344618941,0.5619,2608.7,2608.3,0.00574977]
[1739344619342,3.71966362,2608.7,2608.3,0.00574977]
[1739344620837,0.06345473,2608.6,2608.3,0.00574977]
[1739344621245,0.5966,2608.5,2608.3,0.00574977]
[1739344621546,0.6049,2608.4,2608.3,0.00574977]
[1739344623846,3.76266362,2608.4,2608.3,0.00574977]
[1739344624146,3.82612422,2608.4,2607.9,3.2078]
[1739344624341,0.06346656,2608.3,2607.9,3.2078]
[1739344624551,3.04246656,2608.3,2607.9,3.2078]
[1739344624735,0.5694,2608.2,2607.9,3.2078]
[1739344627050,0.5694,2608.2,2607.9,4.3883]
[1739344627251,1.1235,2608.2,2607.9,4.3883]
[1739344627547,0.00574977,2608.3,2607.9,4.3883]
[1739344627753,0.00574977,2608.3,2607.9,4.9897]
[1739344627950,0.00574977,2608.3,2608.0,43.95776362]
[1739344632550,0.00574977,2608.3,2608.0,40.8]
[1739344635154,0.00574977,2608.3,2608.2,3.2078]
[1739344635957,3.2078,2609.2,2608.3,0.76688]
[1739344636150,0.5819,2609.1,2608.8,3.2078]
[1739344636355,0.5819,2609.1,2608.9,40.8]
[1739344636763,0.5967,2609.2,2608.9,40.8]
[1739344636957,0.5967,2609.2,2609.0,0.5887]
[1739344643960,0.5774,2609.4,2609.0,0.5887]
[1739344645860,0.5964,2609.5,2609.1,3.2078]
[1739344646069,3.15776362,2609.9,2609.1,3.7757]
[1739344646259,3.4108,2610.0,2609.4,3.2078]
[1739344646563,3.4108,2610.0,2609.5,0.6034]
[1739344646958,1.7438,2610.0,2609.5,0.6034]
[1739344648355,1.7438,2610.0,2609.6,0.5878]
[1739344648670,1.173,2610.0,2609.7,3.2078]
[1739344650669,0.6039,2610.0,2609.7,3.2078]
[1739344651963,3.2078,2610.2,2609.7,3.2078]
[1739344655271,3.2078,2610.2,2609.8,0.19339018]
[1739344656075,1.1269,2610.3,2609.8,0.19339018]
[1739344656467,4.3347,2610.3,2609.8,0.19339018]
[1739344656667,1.1269,2610.3,2609.8,0.19339018]
[1739344656874,1.1269,2610.3,2609.7,3.2078]
[1739344659069,0.5603,2610.3,2610.0,3.2078]
[1739344659275,0.5603,2610.3,2610.1,1.1328]
[1739344659579,0.5603,2610.3,2610.2,40.8]
[1739344664678,4.3643,2610.6,2610.2,40.8]
[1739344664976,0.5994,2610.5,2610.2,40.8]
[1739344666378,3.75716362,2610.5,2610.2,40.8]
[1739344666579,3.75716362,2610.5,2610.0,3.2078]
[1739344667086,3.15776362,2610.2,2610.0,3.2078]
[1739344667384,1.6975,2610.1,2610.0,3.2078]
[1739344667577,1.6975,2610.1,2609.7,44.0078]
[1739344668075,1.1376,2610.1,2609.8,0.5899]
[1739344668480,0.5746,2610.1,2609.8,0.5899]
[1739344668686,1.1229,2610.4,2609.8,0.5899]
[1739344668984,1.6975,2610.4,2609.9,3.15776362]
[1739344669285,1.1376,2610.4,2610.0,3.2078]
[1739344669476,1.1376,2610.4,2610.0,3.8041]
[1739344670382,2.979,2610.5,2610.0,3.8041]
[1739344671083,1.1391,2610.7,2610.0,3.8041]
[1739344671380,3.15776362,2610.8,2610.0,3.8041]
[1739344671583,0.06340171,2610.7,2610.0,3.8041]
[1739344672083,0.63790171,2610.7,2610.0,3.8041]
[1739344672284,0.5745,2610.7,2610.0,3.8041]
[1739344672484,0.5745,2610.7,2610.3,3.2078]
[1739344672685,0.5745,2610.7,2610.4,0.601]
[1739344672881,0.5745,2610.7,2610.4,1.1949]
[1739344673078,0.5745,2610.7,2610.3,3.2078]
[1739344673286,3.7823,2610.7,2610.0,3.2078]
[1739344673481,0.06340365,2610.6,2610.0,3.2078]
[1739344673880,0.555,2610.5,2610.0,3.2078]
[1739344674090,0.5559,2610.4,2610.0,3.2078]
[1739344674590,0.5559,2610.4,2609.8,1.1675]
[1739344674887,0.5559,2610.4,2609.7,3.2078]
[1739344675082,0.06341122,2610.3,2609.7,3.2078]
[1739344675483,0.5559,2610.4,2609.8,0.5736]
[1739344675683,0.5559,2610.4,2609.9,0.5708]
[1739344676282,0.5559,2610.4,2610.0,40.8]
[1739344677482,0.5559,2610.4,2610.0,44.0078]
[1739344678082,0.555,2610.5,2610.0,44.0078]
[1739344678779,0.5745,2610.7,2610.0,44.0078]
[1739344679786,0.5745,2610.7,2610.3,3.2078]
[1739344679988,0.5745,2610.7,2610.4,1.1191]
[1739344681798,0.5745,2610.7,2610.5,40.8]
[1739344683398,0.5745,2610.7,2610.3,3.2078]
[1739344684086,0.5745,2610.7,2610.4,0.5514]
[1739344685897,0.5543,2610.8,2610.4,0.5514]
[1739344686098,0.5543,2610.8,2610.5,0.5562]
[1739344687791,0.5543,2610.8,2610.0,44.0078]
[1739344687792,3.71206362,2610.8,2610.0,44.0078]
[1739344687998,3.71206362,2610.8,2610.1,0.561]
[1739344687999,3.27119875,2610.7,2610.1,0.561]
[1739344688192,3.2078,2610.7,2610.1,0.561]
[1739344688591,3.71206362,2610.8,2610.1,0.561]
[1739344688894,0.06340108,2610.7,2610.1,0.561]
[1739344689395,3.71206362,2610.8,2610.1,0.561]
[1739344689800,0.5543,2610.8,2610.1,0.561]
[1739344690594,0.5543,2610.8,2610.3,3.2078]
[1739344697299,3.2078,2610.7,2610.3,3.2078]
[1739344697500,3.71206362,2610.8,2610.3,3.2078]
[1739344697800,0.06340105,2610.7,2610.3,3.2078]
[1739344698308,3.27120105,2610.7,2610.3,3.2078]
[1739344698507,3.2078,2610.7,2610.3,3.2078]
[1739344698799,3.71206362,2610.8,2610.3,3.2078]
[1739344699206,0.5543,2610.8,2610.3,3.2078]
[1739344700403,0.5543,2610.8,2610.4,0.5961]
[1739344700707,0.5543,2610.8,2610.5,0.5835]
[1739344700908,0.5543,2610.8,2610.5,1.1658]
[1739344702401,3.7631,2611.0,2610.5,1.1658]
[1739344702602,0.06339426,2610.9,2610.5,1.1658]
[1739344702811,4.3253,2611.0,2610.5,1.1658]
[1739344703010,4.8738,2611.4,2610.6,3.2078]
[1739344703198,0.62558519,2611.3,2610.6,3.2078]
[1739344703503,0.5622,2611.3,2610.7,0.00574977]
[1739344703704,0.06338855,2611.2,2610.7,0.00574977]
[1739344704305,6.36556362,2611.1,2610.7,0.00574977]
[1739344704501,3.15776362,2610.8,2610.7,0.00574977]
[1739344704906,3.22116086,2610.8,2610.7,0.00574977]
[1739344705710,3.2211626,2610.8,2610.7,0.00574977]
[1739344706312,0.06339898,2610.8,2610.7,0.00574977]
[1739344706505,0.5827,2610.8,2610.7,0.00574977]
[1739344706905,2.2414,2610.9,2610.7,0.00574977]
[1739344707206,0.5827,2610.8,2610.7,0.00574977]
[1739344707743,1.666,2610.9,2610.7,0.00574977]
[1739344708111,2.2487,2610.9,2610.7,0.00574977]
[1739344710511,0.06339955,2610.8,2610.7,0.00574977]
[1739344710713,3.22116317,2610.8,2610.7,0.00574977]
[1739344710920,3.2211649,2610.8,2610.7,0.00574977]
[1739344714015,0.06340128,2610.8,2610.7,0.00574977]
[1739344714320,2.2487,2610.9,2610.7,0.00574977]
[1739344714715,6.42896217,2610.8,2610.7,0.00574977]
[1739344716129,6.42896514,2610.8,2610.7,0.00574977]
[1739344717721,6.42896512,2610.8,2610.7,0.00574977]
[1739344719730,6.4289649,2610.8,2610.7,0.00574977]
[1739344720627,6.89229852,2610.8,2610.7,0.00574977]
[1739344720825,12.89229852,2610.8,2610.0,41.3712]
[1739344721023,2.2487,2610.9,2610.0,40.8]
[1739344721024,3.15776362,2610.4,2610.0,40.8]
[1739344721224,3.15776362,2610.1,2609.6,1.1678]
[1739344721425,1.665,2610.1,2609.6,1.1678]
[1739344721630,1.665,2610.1,2609.7,40.8]
[1739344724236,3.21354977,2610.2,2609.7,40.8]
[1739344724840,0.00574977,2610.2,2609.7,40.8]
[1739344725042,0.00574977,2610.2,2609.8,3.2078]
[1739344726147,0.00574977,2610.2,2609.9,3.15776362]
[1739344726343,0.00574977,2610.2,2610.0,0.6042]
[1739344726544,0.00574977,2610.2,2610.1,0.5592]
[1739344727151,0.00574977,2610.2,2610.1,41.3592]
[1739344727843,0.00574977,2610.2,2610.1,44.567]
[1739344729348,0.00574977,2610.2,2610.1,41.3592]
[1739344732538,0.00574977,2610.2,2610.1,44.567]
[1739344737543,0.00574977,2610.2,2610.1,41.3592]
[1739344738252,0.7664,2610.0,2609.6,0.31515217]
[1739344738445,0.5665,2609.9,2609.6,0.00574977]
[1739344738749,1.17664977,2610.2,2609.6,3.21354977]
[1739344739045,1.74314977,2610.2,2609.7,1.7212]
[1739344739446,1.74314977,2610.2,2609.9,3.2078]
[1739344739849,1.74314977,2610.2,2609.7,1.7212]
[1739344740855,4.90091339,2610.2,2609.6,3.21354977]
[1739344741353,0.0634169,2610.1,2609.6,3.21354977]
[1739344741548,4.90091339,2610.2,2609.6,3.21354977]
[1739344742551,1.74314977,2610.2,2609.6,3.21354977]
[1739344745352,1.13724977,2610.2,2609.6,3.21354977]
[1739344745550,1.13724977,2610.2,2609.9,3.2078]
[1739344745747,0.00574977,2610.2,2610.0,1.1704]
[1739344745948,0.00574977,2610.2,2610.0,1.7415]
[1739344746849,0.00574977,2610.2,2610.0,4.89926362]
[1739344747048,0.00574977,2610.2,2610.1,40.8]
[1739344748359,0.00574977,2610.2,2610.1,41.35859676]
[1739344748759,1e-08,2610.3,2610.1,47.35859676]
[1739344748956,1e-08,2610.3,2610.2,3.2078]
[1739344749356,1e-08,2610.3,2610.2,9.76639676]
[1739344749659,1e-08,2610.3,2610.2,50.56639676]
[1739344749859,1e-08,2610.3,2610.2,44.56639676]
[1739344750154,3.72816362,2611.1,2610.2,50.56639676]
[1739344750155,0.5704,2611.1,2610.2,50.56639676]
[1739344750452,0.5704,2611.1,2610.6,3.2078]
[1739344750659,0.5704,2611.1,2610.7,1.7568]
[1739344754455,0.5704,2611.1,2610.9,3.2078]
[1739344754756,0.5864,2611.2,2610.9,3.2078]
[1739344755157,3.8056,2611.3,2611.0,40.8]
[1739344755358,0.5978,2611.3,2611.2,3.2078]
[1739344760059,0.5899,2611.4,2611.2,3.2078]
[1739344762762,0.5823,2611.5,2611.2,3.2078]
[1739344763162,0.5823,2611.5,2611.3,40.8]
[1739344764363,0.5823,2611.5,2611.2,3.2078]
[1739344770254,0.5823,2611.5,2611.3,40.8]
[1739344771269,3.82694,2613.5,2611.3,40.8]
[1739344771458,20.70803243,2614.3,2611.3,46.8]
[1739344771664,0.19104008,2619.3,2611.4,17.25564603]
[1739344771858,0.1536,2617.2,2616.1,0.18753353]
[1739344772060,0.1536,2617.2,2617.1,6.36556362]
[1739344772461,11.256,2617.2,2617.1,3.15776362]
[1739344772864,11.256,2617.2,2617.1,6.36556362]
[1739344773170,17.256,2617.2,2616.9,0.00573756]
[1739344773462,11.256,2617.0,2616.4,6.36556362]
[1739344773666,11.256,2616.8,2616.5,3.2078]
[1739344773856,26.50869684,2617.3,2616.5,3.2078]
[1739344774056,26.50869684,2617.3,2616.5,1.55387001]
[1739344774057,11.256,2616.6,2616.5,1.55387001]
[1739344774269,11.256,2616.8,2616.5,4.76167001]
[1739344774466,11.256,2616.8,2616.7,4.01237063]
[1739344774662,0.00569687,2616.9,2616.7,4.01237063]
[1739344774859,11.26169687,2616.9,2616.8,3.2078]
[1739344775261,3.2078,2618.3,2616.9,0.76437]
[1739344775571,3.2078,2618.3,2617.7,7.22017063]
[1739344775765,11.256,2617.8,2617.7,4.01237063]
[1739344776066,11.256,2617.8,2617.7,7.22017063]
[1739344776569,11.256,2617.8,2617.7,4.76167001]
[1739344777767,11.256,2617.8,2617.7,3.80544231]
[1739344780672,11.256,2617.8,2617.7,4.76118663]
[1739344781371,11.256,2617.8,2617.7,3.80544231]
[1739344784879,2.259,2618.7,2617.7,3.80544231]
[1739344785082,2.259,2618.7,2618.3,3.2078]
[1739344785378,2.259,2618.7,2617.7,0.59764231]
[1739344785379,0.31193304,2619.6,2618.6,3.2078]
[1739344785573,11.256,2618.8,2618.7,3.2078]
[1739344785773,2.259,2619.7,2618.7,3.2078]
[1739344785968,2.259,2619.7,2619.0,3.2078]
[1739344786172,0.5975,2619.5,2619.0,3.2078]
[1739344786378,11.256,2619.1,2619.0,3.2078]
[1739344787171,5.4708,2620.1,2619.0,7.17342194]
[1739344787371,5.4708,2620.1,2618.8,0.00573756]
[1739344787372,9.43642194,2620.1,2619.4,3.2078]
[1739344787572,11.256,2618.9,2618.8,0.00573756]
[1739344787773,11.256,2618.8,2618.1,3.2078]
[1739344788069,2.272,2618.7,2618.1,3.2078]
[1739344788274,2.272,2618.7,2617.5,0.5716]
[1739344788275,11.256,2618.3,2618.2,3.96562194]
[1739344788575,2.272,2618.7,2618.2,7.17342194]
[1739344788576,11.256,2618.4,2618.2,7.17342194]
[1739344788779,11.256,2618.5,2618.2,7.17342194]
[1739344789874,2.26870069,2619.1,2618.2,7.17342194]
[1739344790070,11.256,2618.7,2618.6,3.2078]
[1739344790378,11.256,2618.8,2618.6,3.2078]
[1739344791084,11.256,2618.7,2618.6,3.2078]
[1739344792275,0.00570069,2619.1,2618.6,3.2078]
[1739344792481,0.00570069,2619.1,2619.0,3.2078]
[1739344792976,11.26170069,2619.1,2619.0,3.2078]
[1739344793380,0.00570069,2619.1,2619.0,3.2078]
[1739344793581,11.26170069,2619.1,2619.0,3.2078]
[1739344794983,0.00570069,2619.1,2619.0,3.2078]
[1739344795485,0.00570069,2619.1,2619.0,44.0078]
[1739344795685,0.00570069,2619.1,2619.0,44.6047768]
[1739344795882,0.00570069,2619.1,2619.0,3.8047768]
[1739344796187,11.26170069,2619.1,2619.0,3.8047768]
[1739344796785,11.26170069,2619.1,2619.0,0.5969768]
[1739344796981,11.26170069,2619.1,2618.7,3.2078]
[1739344797185,11.256,2618.8,2618.7,3.2078]
[1739344797487,11.256,2618.8,2618.4,3.2078]
[1739344797682,0.76405,2618.1,2617.1,3.2078]
[1739344797992,7.45953009,2617.2,2617.0,1.66792458]
[1739344798181,0.19165879,2617.8,2617.1,0.5554813]
[1739344798380,0.19165879,2617.8,2617.7,7.17342194]
[1739344798575,2.272,2618.9,2617.7,7.73046152]
[1739344798774,2.272,2618.9,2618.3,3.96562194]
[1739344798775,7.45953009,2618.5,2618.3,3.96562194]
[1739344799281,7.45953009,2618.4,2618.0,3.96562194]
[1739344799480,7.45953009,2618.3,2618.1,0.55482145]
[1739344799683,7.45953009,2618.3,2618.1,0.59731742]
[1739344799884,7.45953009,2618.2,2618.1,0.59731742]
[1739344800486,7.45953009,2618.2,2618.1,1.1460726]
[1739344800782,7.45953009,2618.2,2618.1,2.0240762]
[1739344801285,7.45953009,2618.2,2618.1,4.24477283]
[1739344801687,7.45953009,2618.2,2618.1,2.54206812]
[1739344802286,7.45953009,2618.2,2618.1,3.47472786]
[1739344802783,9.2078,2618.2,2617.2,0.30927229]